bitfinex-derivatives/quotes_BTCF0:USTF0_20251119
["timestamp","ask_amount","ask_price","bid_price","bid_amount"]
[1763552944527,0.1521329,91548.0,91545.0,0.00016384]
[1763552944722,0.17839472,91548.0,91545.0,0.00016384]
[1763552951244,0.17839472,91548.0,91547.0,0.0231957]
[1763552953746,0.17839472,91548.0,91547.0,0.0001057]
[1763552954445,0.17839472,91548.0,91547.0,0.0231957]
[1763552955748,0.17839472,91548.0,91547.0,0.0456857]
[1763552957437,0.02626182,91548.0,91547.0,0.1549998]
[1763552958144,0.04795182,91548.0,91547.0,0.1549998]
[1763552958446,0.06908182,91548.0,91547.0,0.1549998]
[1763552958641,0.04795182,91548.0,91547.0,0.1549998]
[1763552961042,0.06908182,91548.0,91547.0,0.0456857]
[1763552962750,0.04795182,91548.0,91547.0,0.0456857]
[1763552963340,0.06908182,91548.0,91547.0,0.0456857]
[1763552965451,0.02626182,91548.0,91547.0,0.0456857]
[1763552965750,0.04730182,91548.0,91547.0,0.0456857]
[1763552966249,0.07060182,91548.0,91547.0,0.0456857]
[1763552974050,0.43140182,91548.0,91547.0,0.0001057]
[1763552974444,0.43140182,91548.0,91547.0,0.0442057]
[1763552985164,0.38706182,91548.0,91547.0,0.0442057]
[1763552985368,0.15830472,91548.0,91547.0,0.0442057]
[1763552985569,0.04899182,91548.0,91547.0,0.0442057]
[1763552985769,0.07159182,91548.0,91547.0,0.0442057]
[1763552993071,0.02252474,91548.0,91547.0,0.0442057]
[1763552993273,0.1546333,91556.0,91555.0,0.0441]
[1763552994579,0.1546333,91556.0,91555.0,0.1534045]
[1763553002288,0.1546333,91556.0,91555.0,0.0441]
[1763553002792,0.1666393,91551.0,91550.0,0.00219803]
[1763553002984,0.1666393,91551.0,91550.0,0.10735803]
[1763553003288,0.1666393,91551.0,91550.0,0.00219803]
[1763553005094,0.19253431,91551.0,91550.0,0.00219803]
[1763553005594,0.19253431,91551.0,91550.0,0.02444803]
[1763553006896,0.18086431,91551.0,91550.0,0.04757803]
[1763553010694,0.07155501,91551.0,91550.0,0.04757803]
[1763553010894,0.04566,91551.0,91550.0,0.04757803]
[1763553011194,0.36096384,91559.0,91553.0,0.1546869]
[1763553011195,0.04566,91554.0,91553.0,0.1546869]
[1763553011399,0.07155981,91554.0,91553.0,0.1546869]
[1763553011597,0.04566,91554.0,91553.0,0.2598469]
[1763553011800,0.40662384,91559.0,91558.0,0.154681]
[1763553012007,0.43252327,91559.0,91558.0,0.154681]
[1763553015912,0.07172327,91559.0,91558.0,0.154681]
[1763553018101,0.40011415,91568.0,91558.0,0.154681]
[1763553018102,0.3608,91568.0,91567.0,0.1546702]
[1763553018306,0.40646,91568.0,91567.0,0.2598302]
[1763553019697,0.40746,91568.0,91567.0,0.2598302]
[1763553020101,0.04566,91568.0,91567.0,0.2598302]
[1763553024502,0.04566,91568.0,91567.0,0.15054]
[1763553026611,0.1549491,91568.0,91567.0,0.15054]
[1763553027322,0.04566,91568.0,91567.0,0.15054]
[1763553028913,0.02329,91568.0,91567.0,0.15054]
[1763553029313,0.04485384,91577.0,91576.0,0.1661995]
[1763553030105,0.07047233,91577.0,91576.0,0.1661995]
[1763553031409,0.07147233,91577.0,91576.0,0.1661995]
[1763553032004,0.18075063,91577.0,91576.0,0.1661995]
[1763553032817,0.07147233,91577.0,91576.0,0.1661995]
[1763553033309,0.00116384,91577.0,91576.0,0.2713195]
[1763553033709,0.00116384,91577.0,91576.0,0.6321195]
[1763553034415,0.00016384,91577.0,91576.0,0.6321195]
[1763553035215,0.00016384,91577.0,91576.0,0.6331195]
[1763553035809,0.00016384,91577.0,91576.0,0.6341195]
[1763553037412,0.3608,91589.0,91588.0,0.1092652]
[1763553037612,0.02559416,91589.0,91588.0,0.2713752]
[1763553037815,0.1548748,91597.0,91596.0,0.05699]
[1763553038119,0.18046776,91597.0,91596.0,0.16211]
[1763553040507,0.154884,91589.0,91588.0,0.04433]
[1763553040708,0.154884,91589.0,91588.0,0.14945]
[1763553041407,0.154884,91589.0,91588.0,0.16211]
[1763553041609,0.02242,91589.0,91588.0,0.16211]
[1763553041822,0.04562,91589.0,91588.0,0.16211]
[1763553043624,0.40642,91599.0,91598.0,0.1535833]
[1763553043826,0.43199441,91599.0,91598.0,0.1535833]
[1763553044322,0.40642,91599.0,91598.0,0.1535833]
[1763553044910,0.40742,91599.0,91598.0,0.1535833]
[1763553045111,0.04662,91599.0,91598.0,0.1535833]
[1763553046816,0.1558721,91599.0,91598.0,0.04433]
[1763553047523,0.1548721,91599.0,91598.0,0.04433]
[1763553053326,0.3608,91607.0,91605.0,0.1092449]
[1763553053532,0.18087277,91606.0,91605.0,0.1535749]
[1763553056435,0.18087277,91606.0,91605.0,0.04433]
[1763553056931,0.18087277,91606.0,91605.0,0.0228]
[1763553057128,0.18087277,91606.0,91600.0,0.00219803]
[1763553057129,0.1548697,91601.0,91600.0,0.00219803]
[1763553057339,0.1548697,91601.0,91600.0,0.13011803]
[1763553057530,0.1548697,91601.0,91600.0,0.15164803]
[1763553058231,0.18041957,91601.0,91600.0,0.15164803]
[1763553060234,0.18041957,91601.0,91600.0,0.04652803]
[1763553060641,0.18041957,91601.0,91600.0,0.02499803]
[1763553060838,0.18041957,91601.0,91600.0,0.00219803]
[1763553063039,0.18041957,91601.0,91595.0,0.12792]
[1763553063040,0.1538656,91596.0,91595.0,0.12792]
[1763553063235,0.54021547,91596.0,91595.0,0.12792]
[1763553063542,0.54021547,91596.0,91595.0,0.04568]
[1763553064848,0.43095987,91596.0,91591.0,0.1092616]
[1763553065043,0.00043675,91606.0,91590.0,0.21235922]
[1763553065044,0.1536523,91599.0,91598.0,0.04563]
[1763553065233,0.17914616,91599.0,91598.0,0.04563]
[1763553066341,0.06989386,91599.0,91598.0,0.1548791]
[1763553068141,0.17914596,91599.0,91598.0,0.1548791]
[1763553068337,0.06989386,91599.0,91598.0,0.1548791]
[1763553069144,0.04770386,91599.0,91598.0,0.1548791]
[1763553069545,0.06989386,91599.0,91598.0,0.1548791]
[1763553070138,0.04770386,91599.0,91598.0,0.1548791]
[1763553070539,0.02549386,91599.0,91598.0,0.1548791]
[1763553071747,0.06989386,91599.0,91598.0,0.1548791]
[1763553072737,0.06989386,91599.0,91598.0,0.04563]
[1763553074050,0.06989386,91599.0,91598.0,0.12783]
[1763553074344,0.02549386,91599.0,91593.0,0.3608]
[1763553074552,0.514458,91594.0,91593.0,0.04563]
[1763553074848,0.53995186,91594.0,91593.0,0.15071]
[1763553080556,0.53995186,91594.0,91593.0,0.2599692]
[1763553081451,0.43069386,91594.0,91593.0,0.2599692]
[1763553081748,0.4052,91604.0,91603.0,0.1548773]
[1763553081952,0.43071069,91604.0,91603.0,0.1548773]
[1763553084245,0.06991069,91604.0,91603.0,0.1548773]
[1763553084948,0.06991069,91604.0,91603.0,0.2599573]
[1763553085340,0.06991069,91604.0,91600.0,0.37560803]
[1763553085341,0.1092497,91601.0,91600.0,0.00219803]
[1763553085544,0.17978039,91601.0,91600.0,0.00219803]
[1763553091460,0.17978039,91601.0,91600.0,0.04688803]
[1763553091659,0.17978039,91601.0,91600.0,0.00219803]
[1763553092457,0.17978039,91601.0,91600.0,0.02533803]
[1763553092943,0.17978039,91601.0,91600.0,0.00219803]
[1763553096358,0.1541904,91592.0,91591.0,0.04508]
[1763553096550,0.04493,91591.0,91590.0,0.00219803]
[1763553096749,0.07044069,91591.0,91590.0,0.00219803]
[1763553097462,0.07044069,91591.0,91590.0,0.02533803]
[1763553097757,0.1093105,91550.0,91547.0,0.0451857]
[1763553097953,0.1093129,91548.0,91547.0,0.0451857]
[1763553098162,0.49562359,91548.0,91547.0,0.0451857]
[1763553099162,0.4701129,91548.0,91547.0,0.0451857]
[1763553102759,0.4701129,91548.0,91547.0,0.0232457]
[1763553102959,0.4701129,91548.0,91547.0,0.0001057]
[1763553108864,0.4701129,91548.0,91538.0,0.00016385]
[1763553108865,0.1093237,91539.0,91538.0,0.00016385]
[1763553109158,0.4701237,91539.0,91538.0,0.00016385]
[1763553109756,0.4702294,91539.0,91538.0,0.00016385]
[1763553112355,0.4702294,91539.0,91538.0,0.02330385]
[1763553112866,0.4702294,91539.0,91538.0,0.04524385]
[1763553116364,0.4702294,91539.0,91538.0,0.00016385]
[1763553116766,0.109338,91527.0,91524.0,0.01338]
[1763553116961,0.470138,91527.0,91524.0,0.01338]
[1763553117873,0.470138,91527.0,91526.0,0.00127315]
[1763553118166,0.470138,91527.0,91526.0,0.00227315]
[1763553118470,0.470138,91527.0,91526.0,0.02541315]
[1763553118665,0.470138,91527.0,91526.0,0.04735315]
[1763553120757,0.3608,91527.0,91526.0,0.04735315]
[1763553126175,0.38652648,91527.0,91526.0,0.04735315]
[1763553127270,0.49586448,91527.0,91526.0,0.04735315]
[1763553128572,0.49586448,91527.0,91526.0,0.04635315]
[1763553129479,0.49586448,91527.0,91526.0,0.04535315]
[1763553132975,0.49586448,91527.0,91526.0,0.02341315]
[1763553133776,0.49586448,91527.0,91526.0,0.04505315]
[1763553141085,0.49586448,91527.0,91526.0,0.00027315]
[1763553141393,0.49586448,91527.0,91523.0,0.00099]
[1763553141394,0.1093416,91524.0,91523.0,0.00099]
[1763553141575,0.13506808,91524.0,91523.0,0.00099]
[1763553142479,0.13506808,91524.0,91523.0,0.02213]
[1763553143586,0.17439955,91524.0,91523.0,0.00099]
[1763553144586,0.1093487,91518.0,91517.0,0.04418385]
[1763553144788,0.49587518,91518.0,91517.0,0.04418385]
[1763553145991,0.49587518,91518.0,91517.0,0.04518385]
[1763553146982,0.49587518,91518.0,91517.0,0.04618385]
[1763553161813,0.49587518,91518.0,91517.0,0.15553375]
[1763553163515,0.49587518,91518.0,91517.0,0.04618385]
[1763553165516,0.109369,91501.0,91500.0,0.05763]
[1763553165715,0.13511756,91501.0,91500.0,0.05836174]
[1763553166714,0.13511756,91501.0,91500.0,0.06136174]
[1763553167119,0.13511756,91501.0,91500.0,0.05936174]
[1763553169020,0.13511756,91501.0,91500.0,0.05836174]
[1763553172920,0.13511756,91501.0,91497.0,0.01397]
[1763553172921,0.1093726,91498.0,91497.0,0.03499]
[1763553173126,0.13512116,91498.0,91497.0,0.03499]
[1763553173517,0.13512116,91498.0,91497.0,0.05763]
[1763553174124,0.1093726,91498.0,91497.0,0.05763]
[1763553174927,0.13498157,91498.0,91497.0,0.05763]
[1763553175526,0.1093726,91498.0,91497.0,0.05763]
[1763553175921,0.00219803,91500.0,91499.0,0.04366]
[1763553176230,0.13717543,91500.0,91499.0,0.04366]
[1763553178020,0.11156833,91500.0,91499.0,0.04366]
[1763553180430,0.11156833,91500.0,91499.0,0.1530314]
[1763553180620,0.11156833,91500.0,91499.0,0.04366]
[1763553182420,0.3608,91502.0,91501.0,0.04268]
[1763553183534,0.1093617,91508.0,91507.0,0.1541095]
[1763553183730,0.13496325,91508.0,91507.0,0.1541095]
[1763553184032,0.1093617,91508.0,91507.0,0.1541095]
[1763553185431,0.00236188,91510.0,91509.0,0.04475]
[1763553186230,0.02795981,91510.0,91509.0,0.04475]
[1763553188036,0.00236188,91510.0,91509.0,0.04475]
[1763553188738,0.11171998,91510.0,91509.0,0.1541093]
[1763553189439,0.1373126,91510.0,91509.0,0.1541093]
[1763553192232,0.0279545,91510.0,91509.0,0.1541093]
[1763553194340,0.0279545,91510.0,91509.0,0.04475]
[1763553203249,0.109369,91501.0,91500.0,0.05805]
[1763553203443,0.109369,91501.0,91500.0,0.05878174]
[1763553203444,0.13496162,91501.0,91500.0,0.05878174]
[1763553204345,0.13496162,91501.0,91500.0,0.00073174]
[1763553204541,0.13496162,91501.0,91500.0,0.02194174]
[1763553205349,0.13496162,91501.0,91500.0,0.05683174]
[1763553207436,0.13496162,91501.0,91500.0,0.02194174]
[1763553208752,0.13496162,91501.0,91500.0,0.00073174]
[1763553209550,0.1093737,91497.0,91496.0,0.0562273]
[1763553209749,0.13496632,91497.0,91496.0,0.0562273]
[1763553211951,0.13596632,91497.0,91496.0,0.0562273]
[1763553212147,0.1093797,91492.0,91491.0,0.00016385]
[1763553212349,0.1093929,91481.0,91480.0,0.05888]
[1763553212556,0.49578552,91481.0,91480.0,0.05888]
[1763553213359,0.49591726,91481.0,91480.0,0.05888]
[1763553214758,0.49591726,91481.0,91480.0,0.03573]
[1763553214960,0.49591726,91481.0,91480.0,0.05888]
[1763553216161,0.47032464,91481.0,91480.0,0.05888]
[1763553216459,0.00219803,91480.0,91472.0,0.05888]
[1763553216664,0.1094024,91473.0,91472.0,0.05888]
[1763553217062,0.4702024,91473.0,91472.0,0.05888]
[1763553217866,1.9702024,91473.0,91472.0,0.05888]
[1763553219360,1.9702024,91473.0,91472.0,0.0368869]
[1763553221269,0.1486708,91466.0,91465.0,0.05723]
[1763553221669,0.1486708,91466.0,91465.0,0.04449]
[1763553222365,0.1094108,91466.0,91460.0,0.02326]
[1763553222561,0.03826,91461.0,91460.0,0.02326]
[1763553222769,0.1476768,91461.0,91460.0,0.05821]
[1763553224068,0.1466768,91461.0,91460.0,0.05821]
[1763553224569,0.1466768,91461.0,91460.0,0.05921]
[1763553224770,0.1466768,91461.0,91460.0,0.06021]
[1763553224958,0.1466768,91461.0,91460.0,0.06094174]
[1763553225160,0.1466768,91461.0,91460.0,0.06021]
[1763553225567,0.1466768,91461.0,91460.0,0.06094174]
[1763553226965,0.3608,91462.0,91461.0,0.04449]
[1763553227269,0.00016394,91470.0,91469.0,0.04449]
[1763553227270,0.11176817,91470.0,91469.0,0.04449]
[1763553227472,0.11176817,91470.0,91469.0,0.1538972]
[1763553227672,0.12939817,91470.0,91469.0,0.1538972]
[1763553228374,0.14702817,91470.0,91469.0,0.1538972]
[1763553229672,0.00236197,91470.0,91469.0,0.1538972]
[1763553231171,0.3608,91473.0,91472.0,0.1538936]
[1763553232170,0.40078,91473.0,91472.0,0.04449]
[1763553233165,0.38079,91473.0,91472.0,0.04449]
[1763553233369,0.3608,91473.0,91472.0,0.04449]
[1763553233972,0.1093957,91479.0,91478.0,0.04449]
[1763553234371,0.00013174,91481.0,91480.0,0.06040803]
[1763553239584,0.02012174,91481.0,91480.0,0.06040803]
[1763553241883,0.00013174,91481.0,91480.0,0.06040803]
[1763553242081,0.10952464,91481.0,91480.0,0.16980213]
[1763553242973,0.12951464,91481.0,91480.0,0.16980213]
[1763553243170,0.02012174,91481.0,91480.0,0.16980213]
[1763553243370,0.00013174,91481.0,91480.0,0.16980213]
[1763553243881,0.3608,91492.0,91491.0,0.1540609]
[1763553244083,0.38634562,91492.0,91491.0,0.1540609]
[1763553244471,0.40633562,91492.0,91491.0,0.1540609]
[1763553244779,0.38634562,91492.0,91491.0,0.04468]
[1763553244972,0.42642688,91492.0,91491.0,0.04468]
[1763553245179,0.40088126,91492.0,91491.0,0.04468]
[1763553245376,0.40188126,91492.0,91491.0,0.04468]
[1763553251376,0.42739724,91492.0,91491.0,0.04468]
[1763553252182,0.53677694,91492.0,91491.0,0.04468]
[1763553254087,0.53677694,91492.0,91491.0,0.02275]
[1763553254385,0.53677694,91492.0,91491.0,0.04468]
[1763553254786,0.03998,91491.0,91490.0,0.00219803]
[1763553254986,0.06549598,91491.0,91490.0,0.02494803]
[1763553255581,0.1493704,91483.0,91482.0,0.04484394]
[1763553256197,0.1748994,91483.0,91482.0,0.04484394]
[1763553259687,0.1748994,91483.0,91482.0,0.00016394]
[1763553260899,0.1758994,91483.0,91482.0,0.00016394]
[1763553261194,0.1758994,91483.0,91482.0,0.02291394]
[1763553261592,0.1758994,91483.0,91482.0,0.00016394]
[1763553261794,0.1758994,91483.0,91482.0,0.02291394]
[1763553262195,0.1758994,91483.0,91482.0,0.04484394]
[1763553263494,0.1748994,91483.0,91482.0,0.04484394]
[1763553266795,0.1748994,91483.0,91482.0,0.00016394]
[1763553270200,0.1493848,91471.0,91470.0,0.05636]
[1763553270408,0.5101848,91471.0,91470.0,0.05636]
[1763553270702,0.53570999,91471.0,91470.0,0.05636]
[1763553270899,0.53570999,91471.0,91470.0,0.04293]
[1763553271098,0.5101848,91471.0,91470.0,0.04293]
[1763553271704,0.5101848,91471.0,91470.0,0.05664]
[1763553272201,0.5101848,91471.0,91470.0,0.05883803]
[1763553276606,0.40078,91471.0,91470.0,0.05883803]
[1763553277105,0.5101848,91471.0,91470.0,0.05883803]
[1763553277306,0.53580538,91471.0,91470.0,0.04255]
[1763553277707,0.53580538,91471.0,91470.0,0.04474803]
[1763553282703,0.1094108,91466.0,91465.0,0.02295]
[1763553282909,0.17491012,91466.0,91465.0,0.02295]
[1763553283521,0.1493956,91462.0,91461.0,0.04452394]
[1763553283807,0.17491492,91462.0,91461.0,0.04452394]
[1763553284613,0.17491492,91462.0,91461.0,0.02311394]
[1763553285107,0.17491492,91462.0,91461.0,0.02411394]
[1763553285308,0.17491492,91462.0,91461.0,0.04552394]
[1763553285818,0.17491492,91462.0,91461.0,0.04652394]
[1763553288704,0.17491492,91462.0,91461.0,0.00216394]
[1763553289110,0.17491492,91462.0,91461.0,0.02511394]
[1763553290509,0.17491492,91462.0,91461.0,0.00216394]
[1763553290911,0.17491492,91462.0,91461.0,0.02511394]
[1763553291111,0.17491492,91462.0,91461.0,0.00216394]
[1763553292413,0.03998,91447.0,91436.0,0.01371]
[1763553292615,0.42621603,91447.0,91436.0,0.01371]
[1763553292810,0.42631729,91447.0,91446.0,0.04463339]
[1763553293919,0.38633729,91447.0,91446.0,0.04463339]
[1763553294213,0.36090126,91447.0,91446.0,0.04463339]
[1763553294518,0.38089126,91447.0,91446.0,0.04563339]
[1763553294715,0.40088126,91447.0,91446.0,0.04563339]
[1763553295318,0.40088126,91447.0,91446.0,0.04663339]
[1763553295909,0.40088126,91447.0,91446.0,0.04563339]
[1763553297416,0.40088126,91447.0,91446.0,0.02422339]
[1763553297817,0.40088126,91447.0,91446.0,0.04563339]
[1763553298712,0.40088126,91447.0,91446.0,0.15506809]
[1763553300013,0.40088126,91447.0,91446.0,0.04563339]
[1763553306322,0.40088126,91447.0,91446.0,0.00127339]
[1763553307521,0.03998,91439.0,91438.0,0.00010803]
[1763553307727,0.5102231,91439.0,91438.0,0.00010803]
[1763553308226,0.5102231,91439.0,91438.0,0.02247803]
[1763553308524,0.5102231,91439.0,91438.0,0.04398803]
[1763553309018,0.5102231,91439.0,91432.0,0.01371]
[1763553309019,0.1484303,91433.0,91432.0,0.05759]
[1763553309227,0.1484303,91433.0,91432.0,0.04388]
[1763553309526,0.1474303,91433.0,91432.0,0.02237]
[1763553309726,0.1474303,91433.0,91413.0,0.43884408]
[1763553309727,0.1494351,91429.0,91428.0,0.0568]
[1763553310221,0.5092351,91429.0,91428.0,0.0568]
[1763553310614,0.5092351,91429.0,91420.0,0.0568]
[1763553310615,0.3608,91429.0,91420.0,0.0568]
[1763553310817,0.3608,91429.0,91420.0,0.05899803]
[1763553310818,0.03998,91421.0,91420.0,0.05899803]
[1763553311018,0.04011565,91421.0,91420.0,0.05899803]
[1763553311330,0.03911565,91421.0,91420.0,0.05899803]
[1763553311927,0.03911565,91421.0,91420.0,0.05999803]
[1763553312316,0.03811565,91421.0,91420.0,0.05999803]
[1763553313221,0.03811565,91421.0,91420.0,0.06099803]
[1763553316730,0.00013565,91421.0,91420.0,0.06099803]
[1763553325342,0.10960025,91421.0,91420.0,0.06099803]
[1763553325728,0.14558025,91421.0,91420.0,0.06099803]
[1763553326641,0.50638025,91421.0,91420.0,0.02656803]
[1763553327139,0.1454554,91412.0,91411.0,0.3608]
[1763553327336,0.1454614,91407.0,91406.0,0.04374351]
[1763553328246,0.1444614,91407.0,91406.0,0.04374351]
[1763553328444,0.1434614,91407.0,91406.0,0.04374351]
[1763553330441,0.1444614,91407.0,91406.0,0.04374351]
[1763553330636,0.1444614,91407.0,91406.0,0.02183351]
[1763553330836,0.1444614,91407.0,91406.0,0.04374351]
[1763553331041,0.1434614,91407.0,91406.0,0.04374351]
[1763553331248,0.1444614,91407.0,91406.0,0.00027351]
[1763553331455,0.1444614,91407.0,91406.0,0.04374351]
[1763553332559,0.1454614,91407.0,91406.0,0.04374351]
[1763553333657,0.1444614,91407.0,91406.0,0.04409351]
[1763553333851,0.1454614,91407.0,91406.0,0.04409351]
[1763553334653,0.1708371,91407.0,91406.0,0.04409351]
[1763553335051,0.1454746,91396.0,91395.0,0.05697]
[1763553335247,0.1454842,91388.0,91387.0,0.02149241]
[1763553335450,0.5062842,91388.0,91387.0,8.241e-05]
[1763553335650,0.5062842,91388.0,91387.0,0.04390241]
[1763553335651,1.6454842,91388.0,91387.0,0.04390241]
[1763553335855,1.89678,91388.0,91387.0,0.04390241]
[1763553336055,0.03598,91381.0,91380.0,0.02141]
[1763553336254,0.1454926,91381.0,91380.0,0.02141]
[1763553336455,0.1454926,91381.0,91380.0,0.04382]
[1763553337153,0.1454926,91381.0,91366.0,0.04409363]
[1763553337154,0.00782,91380.0,91366.0,0.04409363]
[1763553337359,0.03598,91367.0,91366.0,0.04409363]
[1763553337558,0.14134,91371.0,91370.0,0.04601803]
[1763553337764,0.3608,91373.0,91372.0,0.04382]
[1763553337966,0.37879,91373.0,91372.0,0.04382]
[1763553338458,0.39678,91373.0,91372.0,0.04382]
[1763553338657,0.37879,91373.0,91372.0,0.04382]
[1763553338858,0.3608,91373.0,91372.0,0.04382]
[1763553339551,0.00016412,91376.0,91375.0,0.04382]
[1763553340361,0.03614412,91376.0,91375.0,0.04382]
[1763553341860,0.00016412,91376.0,91375.0,0.04382]
[1763553342659,9.074e-05,91379.0,91378.0,0.04382]
[1763553343654,0.37879,91392.0,91391.0,0.04382]
[1763553343854,0.3608,91392.0,91391.0,0.04382]
[1763553344267,0.39678,91392.0,91391.0,0.04382]
[1763553344768,0.39688285,91392.0,91391.0,0.04382]
[1763553345064,0.39788285,91392.0,91391.0,0.04382]
[1763553345564,0.39888285,91392.0,91391.0,0.04382]
[1763553345958,0.1454806,91391.0,91390.0,0.04601803]
[1763553346962,0.1464806,91391.0,91390.0,0.04601803]
[1763553348161,0.1474806,91391.0,91390.0,0.04601803]
[1763553349669,0.1464806,91391.0,91390.0,0.04601803]
[1763553351066,0.03698,91391.0,91390.0,0.04601803]
[1763553351665,0.001,91391.0,91390.0,0.04601803]
[1763553352773,0.36090285,91392.0,91391.0,0.1533206]
[1763553354080,0.37989285,91392.0,91391.0,0.1533206]
[1763553354673,0.37889285,91392.0,91391.0,0.1533206]
[1763553355571,0.39688285,91392.0,91391.0,0.1533206]
[1763553356777,0.39788285,91392.0,91391.0,0.1533206]
[1763553357177,0.37989285,91392.0,91391.0,0.1533206]
[1763553357378,0.36090285,91392.0,91391.0,0.1533206]
[1763553357775,0.37889285,91392.0,91391.0,0.1533206]
[1763553358080,0.00010285,91392.0,91391.0,0.1533206]
[1763553358486,0.00016412,91401.0,91400.0,0.1533098]
[1763553358680,0.01815412,91401.0,91400.0,0.15550783]
[1763553358875,0.00016412,91401.0,91400.0,0.15550783]
[1763553359477,0.0002572,91401.0,91400.0,0.15550783]
[1763553361383,0.0002572,91401.0,91400.0,0.26090783]
[1763553362772,0.03931939,91422.0,91400.0,0.26090783]
[1763553362773,0.04468,91421.0,91404.0,0.01321]
[1763553362981,0.02142,91424.0,91423.0,0.1545323]
[1763553363186,0.04468,91424.0,91423.0,0.1545323]
[1763553364179,0.043572,91424.0,91423.0,0.1545323]
[1763553364781,0.020312,91424.0,91423.0,0.1545323]
[1763553365086,0.042572,91424.0,91423.0,0.1545323]
[1763553365289,0.043572,91424.0,91423.0,0.1545323]
[1763553365480,0.043572,91424.0,91423.0,0.1273]
[1763553366488,0.043572,91424.0,91423.0,0.15047]
[1763553367088,0.05758,91422.0,91421.0,0.3827]
[1763553367277,0.05758,91422.0,91421.0,0.40587]
[1763553368379,0.05858,91422.0,91421.0,0.3608]
[1763553369888,0.05758,91422.0,91421.0,0.3608]
[1763553370085,0.05858,91422.0,91421.0,0.3608]
[1763553370488,0.05858,91422.0,91421.0,0.3827]
[1763553370693,0.05858,91422.0,91421.0,0.3608]
[1763553370987,0.04568,91422.0,91421.0,0.40587]
[1763553371182,0.04468,91422.0,91421.0,0.40587]
[1763553371382,0.05858,91422.0,91421.0,0.40587]
[1763553371883,0.05858,91422.0,91421.0,0.3827]
[1763553372085,0.05858,91422.0,91421.0,0.3608]
[1763553372288,0.05858,91422.0,91421.0,0.3827]
[1763553372992,0.05858,91422.0,91421.0,0.3608]
[1763553374995,0.05858,91422.0,91421.0,0.40587]
[1763553375684,0.04568,91422.0,91421.0,0.40587]
[1763553375885,0.02242,91422.0,91421.0,0.40587]
[1763553377386,0.001,91422.0,91421.0,0.40587]
[1763553378295,0.1541343,91430.0,91429.0,0.04507]
[1763553379195,0.1541343,91430.0,91429.0,0.154525]
[1763553380498,0.1551343,91430.0,91429.0,0.154525]
[1763553380991,0.1328743,91430.0,91429.0,0.154525]
[1763553381495,0.1114543,91430.0,91429.0,0.154525]
[1763553381685,0.002,91430.0,91429.0,0.154525]
[1763553382394,0.002,91430.0,91429.0,0.515325]
[1763553384101,0.1094372,91444.0,91432.0,0.1545214]
[1763553384300,0.04445,91444.0,91443.0,0.1534383]
[1763553384500,0.00027339,91446.0,91445.0,0.044]
[1763553384803,0.04828425,91446.0,91445.0,0.044]
[1763553385303,0.04581339,91446.0,91445.0,0.044]
[1763553386300,0.07133202,91446.0,91445.0,0.044]
[1763553386702,0.07333202,91446.0,91445.0,0.044]
[1763553387202,0.07433202,91446.0,91445.0,0.044]
[1763553388798,0.08726202,91446.0,91445.0,0.044]
[1763553392707,0.1520907,91441.0,91440.0,0.36299803]
[1763553392896,0.1520955,91437.0,91436.0,0.00016412]
[1763553393101,0.17761413,91437.0,91436.0,0.00016412]
[1763553394910,0.17861413,91437.0,91436.0,0.00016412]
[1763553395409,0.17961413,91437.0,91436.0,0.00016412]
[1763553398705,0.17961413,91437.0,91436.0,0.04402412]
[1763553400808,0.17963803,91437.0,91436.0,0.04402412]
[1763553401117,0.07019253,91437.0,91436.0,0.04402412]
[1763553401309,0.04465,91437.0,91436.0,0.04402412]
[1763553401505,0.002,91437.0,91436.0,0.04402412]
[1763553401706,0.1326154,91437.0,91436.0,0.04402412]
[1763553401907,0.17964105,91437.0,91436.0,0.04402412]
[1763553402209,0.17964105,91437.0,91436.0,0.10552412]
[1763553402415,0.17964105,91437.0,91436.0,0.12687412]
[1763553402603,0.17964105,91437.0,91436.0,0.14938412]
[1763553402804,0.17964105,91437.0,91436.0,0.04402412]
[1763553403011,0.17964105,91437.0,91436.0,0.14938412]
[1763553408523,0.17964105,91437.0,91436.0,0.12687412]
[1763553408726,0.17967919,91437.0,91436.0,0.14938412]
[1763553411218,0.17967919,91437.0,91436.0,0.25883072]
[1763553411419,0.07023379,91437.0,91436.0,0.25883072]
[1763553411920,0.07023379,91437.0,91436.0,0.15347072]
[1763553412117,0.07023379,91437.0,91436.0,0.04402412]
[1763553412512,0.07023379,91437.0,91436.0,0.15347082]
[1763553412721,0.07023379,91437.0,91436.0,0.04402412]
[1763553418828,0.02758379,91437.0,91436.0,0.04402412]
[1763553419027,0.04875379,91437.0,91436.0,0.04402412]
[1763553419529,0.07023379,91437.0,91436.0,0.04402412]
[1763553421028,0.06923379,91437.0,91436.0,0.04402412]
[1763553421829,0.06965379,91437.0,91436.0,0.04402412]
[1763553423027,0.04779379,91437.0,91436.0,0.04402412]
[1763553423222,0.02658379,91437.0,91436.0,0.04402412]
[1763553423531,0.04779379,91437.0,91436.0,0.04402412]
[1763553423722,0.06965379,91437.0,91436.0,0.14934412]
[1763553424433,0.02658379,91437.0,91436.0,0.14934412]
[1763553424730,0.001,91437.0,91436.0,0.14934412]
[1763553425428,0.00027339,91446.0,91445.0,0.1664759]
[1763553425618,0.02585156,91446.0,91445.0,0.6326359]
[1763553425822,0.00027339,91446.0,91445.0,0.6326359]
[1763553426925,0.04434339,91446.0,91445.0,0.50992]
[1763553427433,0.04534339,91446.0,91445.0,0.50992]
[1763553428529,0.04434339,91446.0,91445.0,0.50992]
[1763553429830,0.04334339,91446.0,91445.0,0.50992]
[1763553430634,0.02148339,91446.0,91445.0,0.50992]
[1763553430935,0.00027339,91446.0,91445.0,0.50992]
[1763553431532,0.00016412,91455.0,91454.0,0.1531851]
[1763553431839,0.00016412,91455.0,91454.0,0.6193451]
[1763553432132,0.15265802,91455.0,91454.0,0.6193451]
[1763553436626,0.04323412,91455.0,91454.0,0.6193451]
[1763553436823,0.04323412,91455.0,91454.0,0.50992]
[1763553437134,0.16634802,91455.0,91454.0,0.6193451]
[1763553437737,0.16634802,91455.0,91454.0,0.50992]
[1763553438227,0.16634802,91455.0,91454.0,0.50988]
[1763553442336,0.15265802,91455.0,91454.0,0.50988]
[1763553443838,0.02137412,91455.0,91454.0,0.50988]
[1763553444038,0.04313412,91455.0,91454.0,0.50988]
[1763553448932,0.05633412,91455.0,91454.0,0.50988]
[1763553449240,0.04313412,91455.0,91454.0,0.50988]
[1763553449441,0.04313412,91455.0,91454.0,0.6193051]
[1763553450142,0.04313412,91455.0,91454.0,0.50988]
[1763553450933,0.04313412,91455.0,91454.0,0.40456]
[1763553451136,0.05633412,91455.0,91454.0,0.4885]
[1763553451442,0.05633412,91455.0,91454.0,0.5105]
[1763553453038,0.05633412,91455.0,91454.0,0.40518]